[Event "Late-Titled-Tuesday-Blitz-March-19-2024"]
[Site "Chess.com"]
[Date "2024.03.19"]
[Round "10"]
[White "Keks2017"]
[Black "Schattman"]
[Result "1/2-1/2"]
[WhiteElo "2572"]
[BlackElo "2509"]
[TimeControl "180+1"]
[EndTime "15:52:53 PDT"]
[Termination "Game drawn by agreement"]

1. e4 {[%clk 0:03:00]} 1... c6 {[%clk 0:02:55.1]} 2. d3 {[%clk 0:02:59.8]} 2...
d5 {[%clk 0:02:55.2]} 3. Nd2 {[%clk 0:03:00]} 3... e5 {[%clk 0:02:53.9]} 4. Ngf3
{[%clk 0:03:00]} 4... Bd6 {[%clk 0:02:53.7]} 5. g3 {[%clk 0:03:00]} 5... Nf6
{[%clk 0:02:53.6]} 6. Bg2 {[%clk 0:03:00.2]} 6... O-O {[%clk 0:02:53.6]} 7. O-O
{[%clk 0:03:00.3]} 7... Re8 {[%clk 0:02:52.5]} 8. b3 {[%clk 0:03:00.4]} 8...
dxe4 {[%clk 0:02:41.4]} 9. dxe4 {[%clk 0:02:59.9]} 9... Qe7 {[%clk 0:02:36.7]}
10. Bb2 {[%clk 0:02:58.9]} 10... Bg4 {[%clk 0:02:35.9]} 11. h3 {[%clk
0:02:56.1]} 11... Bxf3 {[%clk 0:02:35.6]} 12. Qxf3 {[%clk 0:02:55.3]} 12... Ba3
{[%clk 0:02:30.4]} 13. Bxa3 {[%clk 0:02:53]} 13... Qxa3 {[%clk 0:02:30.2]} 14.
Nc4 {[%clk 0:02:53.1]} 14... Qe7 {[%clk 0:02:21.2]} 15. Rad1 {[%clk 0:02:52.7]}
15... Na6 {[%clk 0:02:18.7]} 16. Nd6 {[%clk 0:02:49.5]} 16... Red8 {[%clk
0:02:12.6]} 17. Nf5 {[%clk 0:02:49.4]} 17... Qe6 {[%clk 0:02:12.1]} 18. Rxd8+
{[%clk 0:02:41.9]} 18... Rxd8 {[%clk 0:02:10.9]} 19. Rd1 {[%clk 0:02:41.6]}
19... Rd7 {[%clk 0:01:38.1]} 20. Bf1 {[%clk 0:02:38.6]} 20... Nc5 {[%clk
0:01:30.6]} 21. Bc4 {[%clk 0:02:35.1]} 21... Rxd1+ {[%clk 0:01:27]} 22. Qxd1
{[%clk 0:02:34.7]} 22... Qd7 {[%clk 0:01:21.6]} 23. Qxd7 {[%clk 0:02:27.8]}
23... Nfxd7 {[%clk 0:01:21]} 24. f3 {[%clk 0:02:27.4]} 24... Nb6 {[%clk
0:01:12.2]} 25. Be2 {[%clk 0:02:23.7]} 25... Kf8 {[%clk 0:01:09.3]} 26. Kf2
{[%clk 0:02:20.7]} 26... Nc8 {[%clk 0:01:02.5]} 27. Ne3 {[%clk 0:02:07.5]} 27...
f6 {[%clk 0:00:58.6]} 28. Nc4 {[%clk 0:02:06.7]} 28... Ke7 {[%clk 0:00:52.2]}
29. Ke3 {[%clk 0:02:05.7]} 29... Nd6 {[%clk 0:00:45.2]} 30. Nd2 {[%clk
0:02:02.7]} 30... Ne6 {[%clk 0:00:43]} 31. c3 {[%clk 0:02:01]} 31... b6 {[%clk
0:00:42.4]} 32. b4 {[%clk 0:01:58.9]} 32... c5 {[%clk 0:00:42.2]} 33. a3 {[%clk
0:01:58.4]} 33... g6 {[%clk 0:00:41.2]} 34. h4 {[%clk 0:01:53]} 34... f5 {[%clk
0:00:41.2]} 35. exf5 {[%clk 0:01:48.8]} 35... gxf5 {[%clk 0:00:38]} 36. f4
{[%clk 0:01:46.2]} 36... exf4+ {[%clk 0:00:31.8]} 37. gxf4 {[%clk 0:01:45.6]}
37... Kf6 {[%clk 0:00:30.4]} 38. Bf3 {[%clk 0:01:41.3]} 38... h6 {[%clk
0:00:30.1]} 39. Bd5 {[%clk 0:01:34.3]} 39... Nc7 {[%clk 0:00:28.9]} 40. Bc6
{[%clk 0:01:30.1]} 40... Ncb5 {[%clk 0:00:21]} 1/2-1/2

[Event "Late-Titled-Tuesday-Blitz-March-19-2024"]
[Site "Chess.com"]
[Date "2024.03.19"]
[Round "10"]
[White "BardArtem"]
[Black "RantomOpening"]
[Result "1-0"]
[WhiteElo "2754"]
[BlackElo "2611"]
[TimeControl "180+1"]
[EndTime "15:52:58 PDT"]
[Termination "BardArtem won by resignation"]

1. e4 {[%clk 0:03:00.9]} 1... c5 {[%clk 0:02:59.5]} 2. d4 {[%clk 0:02:52.1]}
2... cxd4 {[%clk 0:02:59.5]} 3. Qxd4 {[%clk 0:02:53]} 3... Nc6 {[%clk
0:02:59.3]} 4. Qd3 {[%clk 0:02:53]} 4... Nf6 {[%clk 0:02:58.3]} 5. Nc3 {[%clk
0:02:52.2]} 5... e6 {[%clk 0:02:58.7]} 6. Bf4 {[%clk 0:02:51]} 6... Bb4 {[%clk
0:02:56.6]} 7. O-O-O {[%clk 0:02:47.5]} 7... d5 {[%clk 0:02:53.2]} 8. exd5
{[%clk 0:02:46.5]} 8... exd5 {[%clk 0:02:51.8]} 9. Nxd5 {[%clk 0:02:44.4]} 9...
Nxd5 {[%clk 0:02:51.2]} 10. Qxd5 {[%clk 0:02:45.3]} 10... Qxd5 {[%clk
0:02:52.1]} 11. Rxd5 {[%clk 0:02:44.9]} 11... Be6 {[%clk 0:02:52.6]} 12. Rb5
{[%clk 0:02:43.8]} 12... O-O-O {[%clk 0:02:47.8]} 13. a3 {[%clk 0:02:33]} 13...
a6 {[%clk 0:02:44.2]} 14. Rxb4 {[%clk 0:02:29.9]} 14... Nxb4 {[%clk 0:02:42.5]}
15. axb4 {[%clk 0:02:30.8]} 15... Rhe8 {[%clk 0:02:37.8]} 16. Nf3 {[%clk
0:02:26.8]} 16... f6 {[%clk 0:02:36.8]} 17. Bd3 {[%clk 0:02:26.2]} 17... g5
{[%clk 0:02:33.6]} 18. Be3 {[%clk 0:02:26.1]} 18... h5 {[%clk 0:02:32.4]} 19.
Nd4 {[%clk 0:02:25.8]} 19... Bd5 {[%clk 0:02:32.6]} 20. Rg1 {[%clk 0:02:22.4]}
20... h4 {[%clk 0:02:32.1]} 21. Nf5 {[%clk 0:02:18.4]} 21... Kb8 {[%clk
0:02:29]} 22. Bd4 {[%clk 0:02:05.6]} 22... Be4 {[%clk 0:02:18.3]} 23. Bxe4
{[%clk 0:02:00.2]} 23... Rxe4 {[%clk 0:02:17.7]} 24. Rd1 {[%clk 0:01:49.1]}
24... Rf4 {[%clk 0:02:10.1]} 25. Be5+ {[%clk 0:01:43.4]} 25... fxe5 {[%clk
0:02:11]} 26. Rxd8+ {[%clk 0:01:43.5]} 26... Kc7 {[%clk 0:02:11.9]} 27. Rf8
{[%clk 0:01:43.5]} 27... Rxf2 {[%clk 0:02:12.1]} 28. Rf7+ {[%clk 0:01:43.7]}
28... Kb6 {[%clk 0:02:11.5]} 29. Nd6 {[%clk 0:01:40.6]} 29... Rxg2 {[%clk
0:02:10.5]} 30. Nc4+ {[%clk 0:01:39.7]} 30... Kc6 {[%clk 0:01:46.8]} 31. Nxe5+
{[%clk 0:01:34.4]} 31... Kd5 {[%clk 0:01:46.3]} 32. Nf3 {[%clk 0:01:32.3]} 32...
Rf2 {[%clk 0:01:41.4]} 33. Nxg5 {[%clk 0:01:25.4]} 33... Rxh2 {[%clk 0:01:38.3]}
34. Rh7 {[%clk 0:01:22.1]} 34... Rh1+ {[%clk 0:01:36.7]} 35. Kd2 {[%clk
0:01:22]} 35... b5 {[%clk 0:01:34.3]} 36. Nf3 {[%clk 0:01:13.4]} 36... h3 {[%clk
0:01:29.3]} 37. Rh5+ {[%clk 0:01:12.1]} 37... Kc4 {[%clk 0:01:24]} 38. Rh4+
{[%clk 0:01:09.8]} 38... Kd5 {[%clk 0:01:23.6]} 39. Ng5 {[%clk 0:01:07.4]} 39...
h2 {[%clk 0:01:23.8]} 40. Nf3 {[%clk 0:01:07]} 40... Rb1 {[%clk 0:01:24.1]} 41.
Rxh2 {[%clk 0:01:03.1]} 41... Rxb2 {[%clk 0:01:24.5]} 42. Kc3 {[%clk 0:01:03.5]}
42... Ra2 {[%clk 0:01:24]} 43. Rh5+ {[%clk 0:01:01]} 43... Kc6 {[%clk
0:01:20.3]} 44. Nd4+ {[%clk 0:01:00.9]} 44... Kb7 {[%clk 0:01:20.2]} 45. Nb3
{[%clk 0:01:01.8]} 45... Kc7 {[%clk 0:01:10.1]} 46. Rh1 {[%clk 0:01:01.6]} 46...
Kb6 {[%clk 0:01:08.5]} 47. Ra1 {[%clk 0:01:01.1]} 47... Rxa1 {[%clk 0:01:08.1]}
48. Nxa1 {[%clk 0:01:02]} 48... a5 {[%clk 0:01:08.3]} 49. bxa5+ {[%clk
0:01:02.9]} 49... Kxa5 {[%clk 0:01:09.2]} 50. Nb3+ {[%clk 0:01:02]} 50... Ka4
{[%clk 0:01:09.8]} 51. Kb2 {[%clk 0:01:02.5]} 51... Kb4 {[%clk 0:01:09.9]} 52.
Nc1 {[%clk 0:01:01.7]} 52... Kc4 {[%clk 0:01:09.9]} 53. Na2 {[%clk 0:01:01.3]}
53... b4 {[%clk 0:01:10]} 54. Nc1 {[%clk 0:01:01.4]} 54... b3 {[%clk 0:01:09.2]}
55. cxb3+ {[%clk 0:01:01.2]} 55... Kb4 {[%clk 0:01:09.6]} 56. Na2+ {[%clk
0:01:01.7]} 56... Ka5 {[%clk 0:01:10.5]} 57. Ka3 {[%clk 0:01:02.6]} 57... Kb5
{[%clk 0:01:11.4]} 58. b4 {[%clk 0:01:03.4]} 58... Kc4 {[%clk 0:01:11.9]} 59.
Ka4 {[%clk 0:01:04.3]} 59... Kd5 {[%clk 0:01:12.6]} 60. b5 {[%clk 0:01:04.8]}
60... Kd6 {[%clk 0:01:13.3]} 61. Ka5 {[%clk 0:01:05.4]} 61... Kc7 {[%clk
0:01:14.2]} 62. Ka6 {[%clk 0:01:05.7]} 62... Kb8 {[%clk 0:01:15.1]} 63. Kb6
{[%clk 0:01:06.3]} 63... Ka8 {[%clk 0:01:16]} 64. Kc7 {[%clk 0:01:06.5]} 64...
Ka7 {[%clk 0:01:16.9]} 65. b6+ {[%clk 0:01:06.1]} 65... Ka8 {[%clk 0:01:17.8]}
66. b7+ {[%clk 0:01:06.1]} 66... Ka7 {[%clk 0:01:18.7]} 67. b8=Q+ {[%clk
0:01:06.8]} 1-0

[Event "Late-Titled-Tuesday-Blitz-March-19-2024"]
[Site "Chess.com"]
[Date "2024.03.19"]
[Round "10"]
[White "ozates"]
[Black "GM_shahin"]
[Result "1-0"]
[WhiteElo "2599"]
[BlackElo "2860"]
[TimeControl "180+1"]
[EndTime "15:53:04 PDT"]
[Termination "ozates won by checkmate"]

1. e4 {[%clk 0:03:00.9]} 1... e5 {[%clk 0:02:50.8]} 2. Nf3 {[%clk 0:03:00.7]}
2... Nc6 {[%clk 0:02:50.6]} 3. Bc4 {[%clk 0:03:00.5]} 3... Bc5 {[%clk
0:02:50.2]} 4. c3 {[%clk 0:03:00.3]} 4... Nf6 {[%clk 0:02:50.6]} 5. d3 {[%clk
0:03:00.7]} 5... O-O {[%clk 0:02:49.7]} 6. O-O {[%clk 0:03:00.2]} 6... d5 {[%clk
0:02:49.6]} 7. exd5 {[%clk 0:03:00.5]} 7... Nxd5 {[%clk 0:02:50.5]} 8. h3 {[%clk
0:03:00.7]} 8... Bf5 {[%clk 0:02:48.4]} 9. Re1 {[%clk 0:03:00.3]} 9... Nb6
{[%clk 0:02:43]} 10. Bb5 {[%clk 0:02:59.6]} 10... f6 {[%clk 0:02:42]} 11. a4
{[%clk 0:02:47.4]} 11... a6 {[%clk 0:02:25.3]} 12. Bxc6 {[%clk 0:02:47.2]} 12...
bxc6 {[%clk 0:02:26.2]} 13. a5 {[%clk 0:02:43.6]} 13... Nd5 {[%clk 0:02:25.2]}
14. d4 {[%clk 0:02:43.9]} 14... exd4 {[%clk 0:02:24.5]} 15. Nxd4 {[%clk
0:02:44.7]} 15... Bd7 {[%clk 0:02:21.4]} 16. Na3 {[%clk 0:02:36.9]} 16... Re8
{[%clk 0:02:00.7]} 17. Nac2 {[%clk 0:02:30.9]} 17... Rxe1+ {[%clk 0:01:56.1]}
18. Qxe1 {[%clk 0:02:31]} 18... Qf8 {[%clk 0:01:56.4]} 19. Bd2 {[%clk
0:02:27.9]} 19... Re8 {[%clk 0:01:56]} 20. Qf1 {[%clk 0:02:28.3]} 20... Bc8
{[%clk 0:01:47.5]} 21. Re1 {[%clk 0:02:17]} 21... Rxe1 {[%clk 0:01:43.6]} 22.
Qxe1 {[%clk 0:02:16.9]} 22... Bxd4 {[%clk 0:01:30.6]} 23. Nxd4 {[%clk
0:02:16.6]} 23... c5 {[%clk 0:01:31.1]} 24. Qe4 {[%clk 0:02:08.9]} 24... Bb7
{[%clk 0:01:19.9]} 25. Nf5 {[%clk 0:02:05.2]} 25... Ba8 {[%clk 0:01:10]} 26. c4
{[%clk 0:01:44.1]} 26... Nb4 {[%clk 0:00:57.5]} 27. Qe6+ {[%clk 0:01:44.1]}
27... Qf7 {[%clk 0:00:55.3]} 28. Qc8+ {[%clk 0:01:40.7]} 28... Qf8 {[%clk
0:00:54.9]} 29. Qxc7 {[%clk 0:01:37.5]} 29... Nd3 {[%clk 0:00:53.9]} 30. Bc3
{[%clk 0:01:17.1]} 30... Be4 {[%clk 0:00:48.2]} 31. Ne7+ {[%clk 0:01:11.6]}
31... Kh8 {[%clk 0:00:47.5]} 32. Qd6 {[%clk 0:01:04.2]} 32... Qa8 {[%clk
0:00:19.8]} 33. Bxf6 {[%clk 0:01:01]} 33... Bxg2 {[%clk 0:00:15.2]} 34. Nf5
{[%clk 0:00:55.1]} 34... Be4 {[%clk 0:00:13.2]} 35. Bxg7+ {[%clk 0:00:54.2]}
35... Kg8 {[%clk 0:00:13.6]} 36. Qe6# {[%clk 0:00:54.4]} 1-0

[Event "Late-Titled-Tuesday-Blitz-March-19-2024"]
[Site "Chess.com"]
[Date "2024.03.19"]
[Round "10"]
[White "SoltaniciR"]
[Black "Byniolus"]
[Result "0-1"]
[WhiteElo "2657"]
[BlackElo "2788"]
[TimeControl "180+1"]
[EndTime "15:53:09 PDT"]
[Termination "Byniolus won by resignation"]

1. e4 {[%clk 0:02:55.6]} 1... d6 {[%clk 0:02:59.9]} 2. d4 {[%clk 0:02:54.9]}
2... Nf6 {[%clk 0:03:00.8]} 3. Nc3 {[%clk 0:02:54.3]} 3... c6 {[%clk 0:03:00.7]}
4. Nf3 {[%clk 0:02:53.9]} 4... Bg4 {[%clk 0:03:00.2]} 5. h3 {[%clk 0:02:54.2]}
5... Bh5 {[%clk 0:03:00.4]} 6. g4 {[%clk 0:02:54.3]} 6... Bg6 {[%clk 0:03:00.3]}
7. Qe2 {[%clk 0:02:54.9]} 7... e6 {[%clk 0:02:57.2]} 8. h4 {[%clk 0:02:54.4]}
8... h5 {[%clk 0:02:57.3]} 9. g5 {[%clk 0:02:54.3]} 9... Nfd7 {[%clk 0:02:57.7]}
10. Bh3 {[%clk 0:02:47.5]} 10... Be7 {[%clk 0:02:57.4]} 11. d5 {[%clk
0:02:47.6]} 11... cxd5 {[%clk 0:02:58.3]} 12. exd5 {[%clk 0:02:47.4]} 12... e5
{[%clk 0:02:59.2]} 13. Be3 {[%clk 0:02:47.3]} 13... O-O {[%clk 0:02:57.3]} 14.
O-O-O {[%clk 0:02:43]} 14... Na6 {[%clk 0:02:56.6]} 15. Nd2 {[%clk 0:02:40.9]}
15... b5 {[%clk 0:02:41.4]} 16. Qxb5 {[%clk 0:02:33.8]} 16... Nac5 {[%clk
0:02:41.8]} 17. Nb3 {[%clk 0:02:15.4]} 17... Rb8 {[%clk 0:02:36.5]} 18. Qe2
{[%clk 0:01:55]} 18... Qc7 {[%clk 0:02:26.3]} 19. f4 {[%clk 0:01:48.9]} 19...
exf4 {[%clk 0:02:23.4]} 20. Bxf4 {[%clk 0:01:30.6]} 20... Rfe8 {[%clk
0:02:23.3]} 21. Rhe1 {[%clk 0:01:30.1]} 21... Nxb3+ {[%clk 0:02:15.1]} 22. axb3
{[%clk 0:01:29.4]} 22... Nc5 {[%clk 0:02:16]} 23. Qh2 {[%clk 0:01:17.4]} 23...
Nxb3+ {[%clk 0:01:32]} 24. cxb3 {[%clk 0:01:11.9]} 24... Rxb3 {[%clk 0:01:32.9]}
25. Re3 {[%clk 0:00:32.1]} 25... Reb8 {[%clk 0:01:32.7]} 26. Rde1 {[%clk
0:00:21.9]} 26... Qa5 {[%clk 0:01:19]} 27. Nb1 {[%clk 0:00:09.6]} 27... Qa1
{[%clk 0:00:46.2]} 28. Rxb3 {[%clk 0:00:08.7]} 28... Qxb1+ {[%clk 0:00:37.9]}
29. Kd2 {[%clk 0:00:08.5]} 29... Qc2+ {[%clk 0:00:37.9]} 0-1

[Event "Late-Titled-Tuesday-Blitz-March-19-2024"]
[Site "Chess.com"]
[Date "2024.03.19"]
[Round "10"]
[White "Bilan_Danila"]
[Black "MalyDominator"]
[Result "0-1"]
[WhiteElo "2637"]
[BlackElo "2545"]
[TimeControl "180+1"]
[EndTime "15:53:10 PDT"]
[Termination "MalyDominator won by resignation"]

1. d4 {[%clk 0:03:00.9]} 1... Nf6 {[%clk 0:02:54.9]} 2. Nf3 {[%clk 0:03:01]}
2... e6 {[%clk 0:02:55]} 3. c4 {[%clk 0:03:00.8]} 3... d5 {[%clk 0:02:55.6]} 4.
Nc3 {[%clk 0:03:00.9]} 4... c5 {[%clk 0:02:55]} 5. cxd5 {[%clk 0:03:00.8]} 5...
Nxd5 {[%clk 0:02:55.9]} 6. e4 {[%clk 0:03:00.9]} 6... Nxc3 {[%clk 0:02:56.3]} 7.
bxc3 {[%clk 0:03:01.8]} 7... cxd4 {[%clk 0:02:57]} 8. cxd4 {[%clk 0:03:02.7]}
8... Bb4+ {[%clk 0:02:57.3]} 9. Bd2 {[%clk 0:03:03.3]} 9... Bxd2+ {[%clk
0:02:58]} 10. Qxd2 {[%clk 0:03:04.2]} 10... O-O {[%clk 0:02:58.1]} 11. Bd3
{[%clk 0:02:53.6]} 11... Nd7 {[%clk 0:02:51.1]} 12. O-O {[%clk 0:02:50.4]} 12...
b6 {[%clk 0:02:46.7]} 13. e5 {[%clk 0:02:43.8]} 13... Bb7 {[%clk 0:02:45]} 14.
Qf4 {[%clk 0:02:44]} 14... h6 {[%clk 0:02:42]} 15. Nd2 {[%clk 0:02:33]} 15...
Rc8 {[%clk 0:02:32.7]} 16. Ne4 {[%clk 0:02:11.6]} 16... Bxe4 {[%clk 0:02:18.6]}
17. Qxe4 {[%clk 0:02:12.5]} 17... g6 {[%clk 0:02:17.6]} 18. Rac1 {[%clk
0:02:02]} 18... Qg5 {[%clk 0:01:59.9]} 19. f4 {[%clk 0:01:56.6]} 19... Qd8
{[%clk 0:01:43.8]} 20. Ba6 {[%clk 0:01:47.7]} 20... Rxc1 {[%clk 0:01:38.4]} 21.
Rxc1 {[%clk 0:01:48.6]} 21... Nb8 {[%clk 0:01:36.9]} 22. Bb7 {[%clk 0:01:37.5]}
22... Qd7 {[%clk 0:01:29.6]} 23. Bc6 {[%clk 0:01:10.5]} 23... Nxc6 {[%clk
0:01:25]} 24. Rxc6 {[%clk 0:01:11.4]} 24... Rd8 {[%clk 0:01:20.7]} 25. Rd6
{[%clk 0:01:10.4]} 25... Qc7 {[%clk 0:01:18.3]} 26. Qc6 {[%clk 0:01:07.4]} 26...
Qxc6 {[%clk 0:01:17.3]} 27. Rxc6 {[%clk 0:01:07.2]} 27... Rxd4 {[%clk
0:01:17.4]} 28. g3 {[%clk 0:01:07.6]} 28... Rd1+ {[%clk 0:01:16.5]} 29. Kg2
{[%clk 0:01:05.9]} 29... Rd2+ {[%clk 0:01:16.9]} 30. Kf3 {[%clk 0:01:06.8]}
30... Rxa2 {[%clk 0:01:17.1]} 31. h3 {[%clk 0:01:07]} 31... b5 {[%clk
0:01:14.9]} 32. g4 {[%clk 0:01:02.2]} 32... b4 {[%clk 0:01:13.2]} 33. Ke4 {[%clk
0:01:01.1]} 33... a5 {[%clk 0:01:04.6]} 34. f5 {[%clk 0:00:58.3]} 34... gxf5+
{[%clk 0:00:59.1]} 35. gxf5 {[%clk 0:00:59.2]} 35... exf5+ {[%clk 0:00:59.7]}
36. Kxf5 {[%clk 0:00:59.1]} 36... b3 {[%clk 0:01:00.3]} 37. Rb6 {[%clk
0:00:57.2]} 37... a4 {[%clk 0:00:56.8]} 38. h4 {[%clk 0:00:53.8]} 38... Rf2+
{[%clk 0:00:50.6]} 39. Kg4 {[%clk 0:00:52]} 39... b2 {[%clk 0:00:50.8]} 40. Kh5
{[%clk 0:00:52.5]} 40... Kg7 {[%clk 0:00:43.8]} 41. e6 {[%clk 0:00:50.5]} 41...
fxe6 {[%clk 0:00:40.5]} 42. Rb7+ {[%clk 0:00:50.5]} 42... Kf6 {[%clk 0:00:39.1]}
43. Rb8 {[%clk 0:00:48.9]} 43... Ke7 {[%clk 0:00:38.3]} 44. Kxh6 {[%clk
0:00:48.9]} 44... a3 {[%clk 0:00:38.1]} 45. h5 {[%clk 0:00:46.1]} 45... a2
{[%clk 0:00:37.8]} 46. Rb7+ {[%clk 0:00:47]} 46... Kd6 {[%clk 0:00:37.7]} 0-1

[Event "Late-Titled-Tuesday-Blitz-March-19-2024"]
[Site "Chess.com"]
[Date "2024.03.19"]
[Round "10"]
[White "Cambek64"]
[Black "maurovargas01"]
[Result "1-0"]
[WhiteElo "2461"]
[BlackElo "1845"]
[TimeControl "180+1"]
[EndTime "15:53:10 PDT"]
[Termination "Cambek64 won on time"]

1. e4 {[%clk 0:03:00.9]} 1... d5 {[%clk 0:02:56.1]} 2. Nc3 {[%clk 0:02:59.6]}
2... d4 {[%clk 0:02:47.1]} 3. Nce2 {[%clk 0:02:59.2]} 3... c5 {[%clk 0:02:47.7]}
4. Ng3 {[%clk 0:02:59]} 4... h5 {[%clk 0:02:46.7]} 5. Bb5+ {[%clk 0:02:54.9]}
5... Nd7 {[%clk 0:02:39.5]} 6. Nxh5 {[%clk 0:02:53.4]} 6... a6 {[%clk
0:02:36.9]} 7. Bxd7+ {[%clk 0:02:52.4]} 7... Bxd7 {[%clk 0:02:37.2]} 8. Ng3
{[%clk 0:02:52.4]} 8... Nf6 {[%clk 0:02:36.6]} 9. d3 {[%clk 0:02:52.8]} 9... Ng4
{[%clk 0:02:34.4]} 10. Nf3 {[%clk 0:02:52.6]} 10... e5 {[%clk 0:02:25.3]} 11. h3
{[%clk 0:02:52.8]} 11... Bd6 {[%clk 0:02:24.1]} 12. hxg4 {[%clk 0:02:51.4]}
12... Rxh1+ {[%clk 0:02:23.1]} 13. Nxh1 {[%clk 0:02:51.5]} 13... Bxg4 {[%clk
0:02:21.9]} 14. Ng3 {[%clk 0:02:46.4]} 14... Qa5+ {[%clk 0:02:21.3]} 15. Bd2
{[%clk 0:02:45.7]} 15... Qb5 {[%clk 0:02:02.3]} 16. b3 {[%clk 0:02:46.2]} 16...
O-O-O {[%clk 0:01:58.5]} 17. a4 {[%clk 0:02:45]} 17... Qd7 {[%clk 0:01:57.3]}
18. Qe2 {[%clk 0:02:42]} 18... g6 {[%clk 0:01:54]} 19. Kd1 {[%clk 0:02:42.1]}
19... Rh8 {[%clk 0:01:52.5]} 20. Kc1 {[%clk 0:02:42.1]} 20... f5 {[%clk
0:01:52]} 21. Kb2 {[%clk 0:02:32.4]} 21... f4 {[%clk 0:01:49.9]} 22. Nf1 {[%clk
0:02:31.1]} 22... Qe7 {[%clk 0:01:34.3]} 23. a5 {[%clk 0:02:30.4]} 23... Qd7
{[%clk 0:01:30]} 24. Be1 {[%clk 0:02:30.7]} 24... Qb5 {[%clk 0:01:27.4]} 25.
N1d2 {[%clk 0:02:29.6]} 25... Bc7 {[%clk 0:01:23.3]} 26. Nc4 {[%clk 0:02:29.7]}
26... Rh1 {[%clk 0:01:01.2]} 27. Bd2 {[%clk 0:02:25.4]} 27... Rh8 {[%clk
0:00:52.5]} 28. Qe1 {[%clk 0:02:14]} 28... Re8 {[%clk 0:00:46.3]} 29. Qh1 {[%clk
0:02:12.7]} 29... Be6 {[%clk 0:00:45.3]} 30. Qh6 {[%clk 0:02:01.4]} 30... Bf7
{[%clk 0:00:39.4]} 31. Qg7 {[%clk 0:02:00.1]} 31... Re7 {[%clk 0:00:39]} 32.
Qf8+ {[%clk 0:01:56.1]} 32... Kd7 {[%clk 0:00:38.2]} 33. Ng5 {[%clk 0:01:48.5]}
33... Bxc4 {[%clk 0:00:32.5]} 34. dxc4 {[%clk 0:01:47.3]} 34... Qc6 {[%clk
0:00:31.4]} 35. f3 {[%clk 0:01:45.5]} 35... Bd6 {[%clk 0:00:24.5]} 36. Qg8
{[%clk 0:01:40.1]} 36... Bc7 {[%clk 0:00:21.5]} 37. Qd5+ {[%clk 0:01:38.2]}
37... Bd6 {[%clk 0:00:17.9]} 38. Qxc6+ {[%clk 0:01:36.5]} 38... Kxc6 {[%clk
0:00:17.8]} 39. Rh1 {[%clk 0:01:35.8]} 39... Rg7 {[%clk 0:00:13]} 40. Rh6 {[%clk
0:01:32.9]} 40... Be7 {[%clk 0:00:11.9]} 41. Nh3 {[%clk 0:01:32.2]} 41... Kd7
{[%clk 0:00:07.7]} 42. Nf2 {[%clk 0:01:30.3]} 42... Bf8 {[%clk 0:00:07.6]} 43.
Nd3 {[%clk 0:01:30]} 1-0

[Event "Late-Titled-Tuesday-Blitz-March-19-2024"]
[Site "Chess.com"]
[Date "2024.03.19"]
[Round "10"]
[White "Zq1"]
[Black "HandKnit"]
[Result "1-0"]
[WhiteElo "2637"]
[BlackElo "2503"]
[TimeControl "180+1"]
[EndTime "15:53:12 PDT"]
[Termination "Zq1 won by resignation"]

1. d4 {[%clk 0:03:00.9]} 1... Nf6 {[%clk 0:02:59.3]} 2. c4 {[%clk 0:02:59.8]}
2... e6 {[%clk 0:02:59.8]} 3. g3 {[%clk 0:02:58.7]} 3... Bb4+ {[%clk 0:03:00]}
4. Nd2 {[%clk 0:02:57.2]} 4... a5 {[%clk 0:03:00.4]} 5. Bg2 {[%clk 0:02:56.1]}
5... O-O {[%clk 0:02:59.9]} 6. Nf3 {[%clk 0:02:55.5]} 6... Re8 {[%clk 0:03:00]}
7. O-O {[%clk 0:02:54.8]} 7... Nc6 {[%clk 0:03:00]} 8. Qc2 {[%clk 0:02:49.9]}
8... d6 {[%clk 0:02:58.9]} 9. Nb1 {[%clk 0:02:43.3]} 9... d5 {[%clk 0:02:50.6]}
10. c5 {[%clk 0:02:42.6]} 10... a4 {[%clk 0:02:48.1]} 11. a3 {[%clk 0:02:42.1]}
11... Ba5 {[%clk 0:02:48.2]} 12. Qxa4 {[%clk 0:02:36.5]} 12... Bd7 {[%clk
0:02:48.1]} 13. Qc2 {[%clk 0:02:34.2]} 13... e5 {[%clk 0:02:42.2]} 14. dxe5
{[%clk 0:02:31.9]} 14... Nxe5 {[%clk 0:02:41.2]} 15. Nxe5 {[%clk 0:02:31.9]}
15... Rxe5 {[%clk 0:02:41.5]} 16. Bf4 {[%clk 0:02:31.8]} 16... Re8 {[%clk
0:02:39.4]} 17. Be3 {[%clk 0:02:25.1]} 17... c6 {[%clk 0:02:34.6]} 18. Bd4
{[%clk 0:02:23.9]} 18... Bg4 {[%clk 0:02:29.6]} 19. e3 {[%clk 0:02:23.3]} 19...
Bc7 {[%clk 0:02:21.8]} 20. b4 {[%clk 0:02:22.9]} 20... Bh5 {[%clk 0:02:19.6]}
21. Nd2 {[%clk 0:02:22.5]} 21... Bg6 {[%clk 0:02:18.6]} 22. Qb2 {[%clk
0:02:22.5]} 22... h5 {[%clk 0:02:12.3]} 23. a4 {[%clk 0:02:21.2]} 23... h4
{[%clk 0:02:10.8]} 24. b5 {[%clk 0:02:20.7]} 24... hxg3 {[%clk 0:02:02.2]} 25.
hxg3 {[%clk 0:02:19.9]} 25... Ng4 {[%clk 0:02:01.5]} 26. Nf3 {[%clk 0:02:10.2]}
26... Be4 {[%clk 0:01:43.3]} 27. b6 {[%clk 0:02:07.8]} 27... Bb8 {[%clk
0:01:40.9]} 28. a5 {[%clk 0:01:54.2]} 28... Bxf3 {[%clk 0:01:39.5]} 29. Bxf3
{[%clk 0:01:53.1]} 29... Qg5 {[%clk 0:01:39.7]} 30. Qe2 {[%clk 0:01:30.8]} 30...
Nh6 {[%clk 0:01:29.3]} 31. Bg2 {[%clk 0:01:20.3]} 31... Nf5 {[%clk 0:01:22.9]}
32. Qf3 {[%clk 0:01:17.3]} 32... Re6 {[%clk 0:01:16.6]} 33. Bh3 {[%clk
0:01:07.8]} 33... Nxd4 {[%clk 0:01:00.4]} 34. exd4 {[%clk 0:01:07]} 34... Rg6
{[%clk 0:00:41.7]} 35. Rfe1 {[%clk 0:00:58]} 35... Qd2 {[%clk 0:00:12.2]} 36.
Re8+ {[%clk 0:00:51.8]} 36... Kh7 {[%clk 0:00:12.7]} 37. Bf5 {[%clk 0:00:43.9]}
1-0